[Event "The Schackveckan 2023: Göteborg open"]
[Site "Göteborgs schackcentrum, Vegagatan 20, Gothenburg, Sweden"]
[Date "2023.08.11"]
[Round "1.16"]
[White "Mohammed, Safian Haj"]
[Black "Pintaric, Felix"]
[Result "1/2-1/2"]
[TimeControl "15 minutes + 5 seconds per move from move one (Round 1 - 4) / 90 minutes + 30 seconds per move from move one (Round 5 - 8)"]
[WhiteFideId "1729276"]
[BlackFideId "1776096"]
[WhiteElo "1862"]
[BlackElo "1483"]

1. e4 {[%clk 00:15:05]} {[%emt 00:00:05]} c5 {[%clk 00:15:09]} {[%emt
00:00:01]} 2. Nf3 {[%clk 00:15:04]} {[%emt 00:00:06]} d6 {[%clk 00:15:13]}
{[%emt 00:00:01]} 3. d4 {[%clk 00:15:02]} {[%emt 00:00:07]} cxd4 {[%clk
00:15:17]} 4. Nxd4 {[%clk 00:14:57]} {[%emt 00:00:10]} Nf6 {[%clk 00:15:20]}
{[%emt 00:00:02]} 5. Nc3 {[%clk 00:14:57]} {[%emt 00:00:05]} a6 {[%clk
00:15:23]} {[%emt 00:00:02]} 6. Bg5 {[%clk 00:14:34]} {[%emt 00:00:27]} e6
{[%clk 00:15:27]} {[%emt 00:00:02]} 7. f4 {[%clk 00:14:32]} {[%emt 00:00:07]}
Be7 {[%clk 00:15:30]} 8. Qf3 {[%clk 00:14:28]} {[%emt 00:00:09]} Qc7 {[%clk
00:15:34]} {[%emt 00:00:02]} 9. O-O-O {[%clk 00:14:10]} {[%emt 00:00:22]} Nbd7
{[%clk 00:15:37]} {[%emt 00:00:03]} 10. g4 {[%clk 00:13:48]} {[%emt 00:00:26]}
h6 {[%clk 00:15:38]} {[%emt 00:00:04]} 11. Bxf6 {[%clk 00:13:16]} {[%emt
00:00:37]} Nxf6 {[%clk 00:14:55]} {[%emt 00:00:48]} 12. g5 {[%clk 00:13:12]}
{[%emt 00:00:08]} Nd7 {[%clk 00:14:10]} {[%emt 00:00:50]} 13. g6 {[%clk
00:12:52]} {[%emt 00:00:25]} O-O {[%clk 00:12:05]} {[%emt 00:02:12]} 14. gxf7+
{[%clk 00:12:46]} {[%emt 00:00:10]} Rxf7 {[%clk 00:12:08]} {[%emt 00:00:02]} 15.
Nxe6 {[%clk 00:12:34]} {[%emt 00:00:17]} Qa5 {[%clk 00:10:38]} {[%emt
00:01:35]} 16. Bc4 {[%clk 00:11:14]} {[%emt 00:01:25]} Ne5 {[%clk 00:10:36]}
{[%emt 00:00:07]} 17. Qe2 {[%clk 00:09:32]} {[%emt 00:01:47]} Nxc4 {[%clk
00:09:57]} {[%emt 00:00:44]} 18. Qxc4 {[%clk 00:09:26]} {[%emt 00:00:11]} Bxe6
{[%clk 00:08:48]} {[%emt 00:01:13]} 19. Qxe6 {[%clk 00:09:18]} {[%emt
00:00:14]} Kf8 {[%clk 00:07:52]} {[%emt 00:01:02]} 20. f5 {[%clk 00:08:51]}
{[%emt 00:00:31]} Re8 {[%clk 00:07:44]} {[%emt 00:00:14]} 21. Kb1 {[%clk
00:08:34]} {[%emt 00:00:22]} Bf6 {[%clk 00:06:11]} {[%emt 00:01:38]} 22. Qxd6+
{[%emt 00:00:09]} Kg8 23. Rd5 {[%clk 00:07:20]} {[%emt 00:01:15]} Qc7 {[%clk
00:05:26]} {[%emt 00:00:55]} 24. Qxc7 {[%clk 00:05:37]} {[%emt 00:01:48]} Rxc7
{[%clk 00:05:29]} 25. Re1 {[%clk 00:05:07]} {[%emt 00:00:35]} Bxc3 {[%clk
00:05:16]} {[%emt 00:00:19]} 26. bxc3 {[%clk 00:05:11]} {[%emt 00:00:02]} Rxc3
{[%clk 00:05:09]} {[%emt 00:00:13]} 27. e5 {[%clk 00:05:04]} {[%emt 00:00:10]}
Kf7 {[%clk 00:05:02]} {[%emt 00:00:13]} 28. Rd7+ {[%clk 00:03:56]} {[%emt
00:01:12]} Re7 {[%clk 00:05:06]} {[%emt 00:00:01]} 29. Rd3 {[%clk 00:03:41]}
{[%emt 00:00:20]} Rc4 {[%clk 00:04:52]} {[%emt 00:00:20]} 30. Rf3 {[%clk
00:02:51]} {[%emt 00:00:55]} Rc5 {[%clk 00:04:46]} {[%emt 00:00:11]} 31. Rfe3
{[%clk 00:02:49]} {[%emt 00:00:05]} Rc4 {[%clk 00:04:44]} {[%emt 00:00:08]} 32.
Rf3 {[%clk 00:02:49]} {[%emt 00:00:04]} Rc5 {[%clk 00:04:48]} {[%emt 00:00:03]}
33. Rfe3 {[%emt 00:00:01]} 1/2-1/2

[Event "The Schackveckan 2023: Göteborg open"]
[Site "Göteborgs schackcentrum, Vegagatan 20, Gothenburg, Sweden"]
[Date "2023.08.11"]
[Round "1.17"]
[White "Yang, Mandi"]
[Black "Westlund, Tim"]
[Result "1-0"]
[TimeControl "15 minutes + 5 seconds per move from move one (Round 1 - 4) / 90 minutes + 30 seconds per move from move one (Round 5 - 8)"]
[WhiteFideId "1774778"]
[BlackFideId "1754718"]
[WhiteElo "1457"]
[BlackElo "1861"]

1. e4 {[%clk 00:15:08]} {[%emt 00:00:02]} e5 {[%clk 00:15:09]} {[%emt
00:00:02]} 2. Nf3 {[%clk 00:15:11]} {[%emt 00:00:02]} Nf6 {[%clk 00:15:11]}
{[%emt 00:00:02]} 3. d4 {[%clk 00:15:14]} {[%emt 00:00:03]} Nxe4 {[%clk
00:15:11]} {[%emt 00:00:04]} 4. Bd3 {[%clk 00:15:15]} {[%emt 00:00:03]} d5
{[%clk 00:15:15]} {[%emt 00:00:01]} 5. dxe5 {[%clk 00:15:13]} {[%emt 00:00:07]}
Be7 {[%clk 00:15:08]} {[%emt 00:00:11]} 6. O-O {[%clk 00:15:10]} {[%emt
00:00:18]} Nc5 {[%clk 00:15:04]} {[%emt 00:00:09]} 7. h3 {[%clk 00:15:03]}
{[%emt 00:00:11]} Nxd3 {[%clk 00:15:05]} {[%emt 00:00:05]} 8. Qxd3 {[%clk
00:15:07]} {[%emt 00:00:01]} O-O {[%clk 00:15:06]} {[%emt 00:00:04]} 9. Nc3
{[%clk 00:15:05]} {[%emt 00:00:06]} Be6 {[%clk 00:14:57]} {[%emt 00:00:14]} 10.
Rd1 {[%clk 00:14:49]} {[%emt 00:00:21]} c6 {[%clk 00:14:54]} {[%emt 00:00:07]}
11. Bf4 {[%clk 00:14:30]} {[%emt 00:00:24]} Nd7 {[%clk 00:14:48]} {[%emt
00:00:12]} 12. Nd4 {[%clk 00:14:18]} {[%emt 00:00:17]} c5 {[%clk 00:12:37]}
{[%emt 00:02:16]} 13. Nxe6 {[%clk 00:14:20]} {[%emt 00:00:04]} fxe6 {[%clk
00:12:38]} {[%emt 00:00:03]} 14. Bg3 {[%clk 00:14:00]} {[%emt 00:00:25]} Bh4
{[%clk 00:12:20]} {[%emt 00:00:24]} 15. Nxd5 {[%clk 00:13:18]} {[%emt
00:00:47]} Bxg3 {[%clk 00:11:00]} {[%emt 00:01:23]} 16. fxg3 {[%clk 00:12:49]}
{[%emt 00:00:36]} Nxe5 {[%clk 00:10:53]} {[%emt 00:00:12]} 17. Qe2 {[%clk
00:11:48]} {[%emt 00:01:06]} exd5 {[%clk 00:10:42]} {[%emt 00:00:16]} 18. Qxe5
{[%clk 00:11:51]} {[%emt 00:00:02]} d4 {[%clk 00:10:06]} {[%emt 00:00:40]} 19.
c3 {[%clk 00:11:08]} {[%emt 00:00:48]} Rc8 {[%clk 00:09:01]} {[%emt 00:01:10]}
20. cxd4 {[%clk 00:10:54]} {[%emt 00:00:20]} cxd4 {[%clk 00:09:04]} {[%emt
00:00:02]} 21. Rxd4 {[%clk 00:10:33]} {[%emt 00:00:26]} Qb6 {[%clk 00:08:52]}
{[%emt 00:00:16]} 22. Kh2 {[%emt 00:01:17]} Qxb2 {[%clk 00:08:27]} {[%emt
00:00:23]} 23. Qd5+ {[%clk 00:08:38]} {[%emt 00:00:55]} Kh8 {[%clk 00:08:28]}
{[%emt 00:00:04]} 24. Re1 {[%clk 00:08:16]} {[%emt 00:00:27]} Rc2 {[%clk
00:06:34]} {[%emt 00:01:56]} 25. Rf4 {[%clk 00:06:33]} {[%emt 00:01:50]} Rfc8
{[%clk 00:04:29]} {[%emt 00:02:09]} 26. Ref1 {[%clk 00:04:40]} {[%emt
00:02:00]} Qa3 {[%clk 00:02:56]} {[%emt 00:01:34]} 27. Qd3 {[%clk 00:03:22]}
{[%emt 00:01:27]} Rxg2+ {[%clk 00:00:55]} {[%emt 00:02:05]} 28. Kxg2 {[%clk
00:02:58]} {[%emt 00:00:30]} Qxa2+ {[%clk 00:00:58]} {[%emt 00:00:02]} 29. R4f2
{[%clk 00:02:59]} {[%emt 00:00:04]} Qg8 {[%clk 00:01:00]} {[%emt 00:00:03]} 30.
Qd7 {[%clk 00:02:56]} {[%emt 00:00:08]} Rb8 {[%clk 00:00:58]} {[%emt 00:00:07]}
31. Rf7 {[%clk 00:02:50]} {[%emt 00:00:11]} b5 {[%clk 00:00:49]} {[%emt
00:00:14]} 32. Qxa7 {[%clk 00:02:52]} {[%emt 00:00:03]} Ra8 {[%clk 00:00:15]}
{[%emt 00:00:39]} 33. Qxa8 {[%clk 00:02:53]} {[%emt 00:00:04]} 1-0

[Event "The Schackveckan 2023: Göteborg open"]
[Site "Göteborgs schackcentrum, Vegagatan 20, Gothenburg, Sweden"]
[Date "2023.08.11"]
[Round "2.1"]
[White "Hector, Jonny"]
[Black "Wesslen, Ulf"]
[Result "1-0"]
[TimeControl "15 minutes + 5 seconds per move from move one (Round 1 - 4) / 90 minutes + 30 seconds per move from move one (Round 5 - 8)"]
[WhiteTitle "GM"]
[WhiteFideId "1700090"]
[BlackFideId "1705199"]
[WhiteElo "2466"]
[BlackElo "1916"]

1. e4 {[%clk 00:15:05]} {[%emt 00:00:03]} e6 {[%clk 00:15:04]} {[%emt
00:00:08]} 2. d4 {[%clk 00:15:05]} {[%emt 00:00:05]} d5 {[%clk 00:15:05]}
{[%emt 00:00:04]} 3. Nc3 {[%clk 00:15:07]} {[%emt 00:00:02]} Bb4 {[%clk
00:14:50]} {[%emt 00:00:20]} 4. Nge2 {[%clk 00:15:08]} {[%emt 00:00:03]} b6
{[%clk 00:13:43]} {[%emt 00:01:14]} 5. a3 {[%clk 00:15:00]} {[%emt 00:00:12]}
Be7 {[%clk 00:13:41]} {[%emt 00:00:08]} 6. g3 {[%clk 00:14:42]} {[%emt
00:00:22]} Bb7 {[%clk 00:12:41]} {[%emt 00:01:06]} 7. Bg2 {[%clk 00:14:42]}
{[%emt 00:00:04]} Nf6 {[%clk 00:12:29]} {[%emt 00:00:17]} 8. e5 {[%clk
00:14:37]} {[%emt 00:00:10]} Nfd7 {[%clk 00:12:18]} {[%emt 00:00:17]} 9. O-O
{[%clk 00:13:52]} {[%emt 00:00:49]} c5 {[%clk 00:11:16]} {[%emt 00:01:07]} 10.
f4 {[%clk 00:13:43]} {[%emt 00:00:15]} Nc6 {[%clk 00:11:05]} {[%emt 00:00:16]}
11. Be3 {[%clk 00:13:43]} {[%emt 00:00:03]} f6 {[%clk 00:09:48]} {[%emt
00:01:25]} 12. f5 {[%clk 00:12:23]} {[%emt 00:01:24]} fxe5 {[%clk 00:08:56]}
{[%emt 00:00:57]} 13. fxe6 {[%clk 00:12:24]} {[%emt 00:00:04]} Nf8 {[%clk
00:08:55]} {[%emt 00:00:06]} 14. Nxd5 {[%clk 00:11:45]} {[%emt 00:00:43]} cxd4
{[%clk 00:08:09]} {[%emt 00:00:51]} 15. Bf2 {[%clk 00:10:55]} {[%emt 00:00:55]}
Nxe6 {[%clk 00:07:39]} {[%emt 00:00:36]} 16. c3 {[%clk 00:10:35]} {[%emt
00:00:25]} d3 {[%clk 00:05:39]} {[%emt 00:02:05]} 17. Qxd3 {[%clk 00:10:26]}
{[%emt 00:00:14]} Nc5 {[%clk 00:05:30]} {[%emt 00:00:14]} 18. Qf5 {[%clk
00:08:20]} {[%emt 00:02:10]} g6 {[%clk 00:04:56]} {[%emt 00:00:40]} 19. Qg4
{[%clk 00:08:07]} {[%emt 00:00:16]} Qd7 {[%clk 00:04:07]} {[%emt 00:00:55]} 20.
Qxd7+ {[%clk 00:08:06]} {[%emt 00:00:06]} Kxd7 {[%clk 00:04:10]} {[%emt
00:00:04]} 21. Rad1 {[%clk 00:07:53]} {[%emt 00:00:17]} Bd6 {[%clk 00:03:26]}
{[%emt 00:00:49]} 22. Bh3+ {[%clk 00:07:12]} {[%emt 00:00:45]} Ne6 {[%clk
00:03:17]} {[%emt 00:00:14]} 23. Bxb6 {[%clk 00:06:40]} {[%emt 00:00:38]} axb6
{[%clk 00:03:06]} {[%emt 00:00:16]} 24. Rf7+ {[%clk 00:06:41]} {[%emt
00:00:03]} Ne7 {[%clk 00:01:50]} {[%emt 00:01:22]} 25. Nf6+ {[%clk 00:06:30]}
{[%emt 00:00:15]} Kc6 {[%clk 00:01:24]} {[%emt 00:00:31]} 26. Bxe6 {[%clk
00:06:17]} {[%emt 00:00:18]} Bc5+ {[%clk 00:01:25]} {[%emt 00:00:05]} 27. Kg2
{[%clk 00:06:01]} {[%emt 00:00:21]} Kb5+ {[%clk 00:01:22]} {[%emt 00:00:08]} 28.
Kh3 {[%clk 00:05:44]} {[%emt 00:00:22]} Bf3 {[%clk 00:01:23]} {[%emt 00:00:06]}
29. Rd2 {[%clk 00:05:23]} {[%emt 00:00:24]} h5 {[%clk 00:01:26]} {[%emt
00:00:02]} 30. Nd5 {[%clk 00:03:25]} {[%emt 00:02:03]} Nf5 {[%clk 00:01:25]}
{[%emt 00:00:06]} 31. c4+ {[%clk 00:02:55]} {[%emt 00:00:35]} Ka6 {[%clk
00:01:20]} {[%emt 00:00:10]} 32. Nc7+ {[%clk 00:02:56]} {[%emt 00:00:04]} Ka5
{[%clk 00:01:05]} {[%emt 00:00:20]} 33. Bxf5 {[%clk 00:02:38]} {[%emt
00:00:23]} Be3 {[%clk 00:01:00]} {[%emt 00:00:10]} 34. b4+ {[%clk 00:02:18]}
{[%emt 00:00:25]} Ka4 {[%clk 00:00:55]} {[%emt 00:00:10]} 35. Bd7+ {[%clk
00:02:03]} {[%emt 00:00:20]} Kb3 {[%clk 00:00:57]} {[%emt 00:00:03]} 36. Rd3+
{[%clk 00:02:06]} {[%emt 00:00:01]} Kb2 {[%clk 00:00:43]} {[%emt 00:00:20]} 37.
Rxf3 {[%clk 00:02:01]} 1-0

[Event "The Schackveckan 2023: Göteborg open"]
[Site "Göteborgs schackcentrum, Vegagatan 20, Gothenburg, Sweden"]
[Date "2023.08.11"]
[Round "2.2"]
[White "Krantz, Martin"]
[Black "Olsson, William"]
[Result "0-1"]
[TimeControl "15 minutes + 5 seconds per move from move one (Round 1 - 4) / 90 minutes + 30 seconds per move from move one (Round 5 - 8)"]
[BlackTitle "FM"]
[WhiteFideId "1724100"]
[BlackFideId "1741721"]
[WhiteElo "2000"]
[BlackElo "2400"]

1. d4 {[%clk 00:15:08]} {[%emt 00:00:02]} d5 {[%clk 00:15:08]} {[%emt
00:00:02]} 2. Bf4 {[%clk 00:15:05]} {[%emt 00:00:08]} Nf6 {[%clk 00:15:11]}
{[%emt 00:00:02]} 3. e3 {[%clk 00:15:04]} {[%emt 00:00:06]} c5 {[%clk
00:15:14]} {[%emt 00:00:03]} 4. Nd2 {[%clk 00:14:28]} {[%emt 00:00:41]} Nc6
{[%clk 00:15:04]} {[%emt 00:00:14]} 5. c3 {[%clk 00:14:26]} {[%emt 00:00:07]}
e6 {[%clk 00:14:49]} {[%emt 00:00:20]} 6. Ngf3 {[%clk 00:14:22]} {[%emt
00:00:09]} Bd6 {[%clk 00:14:42]} {[%emt 00:00:11]} 7. Bg3 {[%clk 00:14:13]}
{[%emt 00:00:14]} O-O {[%clk 00:14:38]} {[%emt 00:00:10]} 8. Bd3 {[%clk
00:14:14]} {[%emt 00:00:04]} b6 {[%clk 00:14:26]} {[%emt 00:00:17]} 9. e4
{[%clk 00:13:51]} {[%emt 00:00:27]} dxe4 {[%clk 00:13:20]} {[%emt 00:01:12]} 10.
Nxe4 {[%clk 00:13:50]} {[%emt 00:00:07]} Nxe4 {[%clk 00:13:22]} {[%emt
00:00:02]} 11. Bxe4 {[%clk 00:13:49]} {[%emt 00:00:06]} Bb7 {[%clk 00:13:20]}
{[%emt 00:00:07]} 12. O-O {[%clk 00:09:12]} {[%emt 00:04:42]} Bxg3 {[%clk
00:12:57]} {[%emt 00:00:28]} 13. hxg3 {[%clk 00:09:14]} {[%emt 00:00:04]} Na5
{[%clk 00:12:40]} {[%emt 00:00:22]} 14. Qe2 {[%clk 00:08:06]} {[%emt 00:01:12]}
Rc8 {[%clk 00:09:20]} {[%emt 00:03:25]} 15. dxc5 {[%clk 00:07:20]} {[%emt
00:00:52]} bxc5 {[%clk 00:08:58]} {[%emt 00:00:27]} 16. Bxb7 Nxb7 {[%clk
00:09:02]} 17. Rfd1 {[%clk 00:06:45]} {[%emt 00:00:11]} Qb6 {[%clk 00:09:04]}
{[%emt 00:00:03]} 18. Rd2 {[%clk 00:06:02]} {[%emt 00:00:47]} Na5 {[%clk
00:07:39]} {[%emt 00:01:30]} 19. b3 {[%clk 00:05:07]} {[%emt 00:01:00]} Nc6
{[%clk 00:06:45]} {[%emt 00:01:00]} 20. Rad1 {[%clk 00:04:21]} {[%emt
00:00:51]} h6 {[%clk 00:06:12]} {[%emt 00:00:38]} 21. Rd6 {[%clk 00:03:50]}
{[%emt 00:00:35]} Qa5 {[%clk 00:05:22]} {[%emt 00:00:55]} 22. Qc2 {[%clk
00:03:13]} {[%emt 00:00:43]} Ne7 {[%clk 00:05:04]} {[%emt 00:00:23]} 23. c4
{[%clk 00:02:52]} {[%emt 00:00:26]} Nc6 {[%clk 00:05:04]} {[%emt 00:00:05]} 24.
Qd2 {[%clk 00:02:35]} {[%emt 00:00:21]} Nb4 {[%clk 00:04:37]} {[%emt 00:00:33]}
25. a4 {[%clk 00:02:25]} {[%emt 00:00:15]} Rb8 {[%clk 00:03:41]} {[%emt
00:01:00]} 26. Ne5 {[%clk 00:02:08]} {[%emt 00:00:22]} Qc7 {[%clk 00:03:40]}
{[%emt 00:00:07]} 27. Nd7 {[%clk 00:02:01]} {[%emt 00:00:12]} Nd5 {[%clk
00:03:12]} {[%emt 00:00:33]} 28. Rxd5 {[%clk 00:01:45]} {[%emt 00:00:20]} exd5
{[%clk 00:03:10]} {[%emt 00:00:07]} 29. Nxf8 {[%clk 00:01:43]} {[%emt
00:00:07]} d4 {[%clk 00:02:59]} {[%emt 00:00:17]} 30. b4 {[%clk 00:01:22]}
{[%emt 00:00:26]} Rxb4 {[%clk 00:01:24]} {[%emt 00:01:40]} 31. Qc2 {[%clk
00:01:26]} Kxf8 {[%clk 00:01:27]} {[%emt 00:00:02]} 32. Qh7 {[%clk 00:01:01]}
{[%emt 00:00:30]} f6 {[%clk 00:00:47]} {[%emt 00:00:45]} 33. Re1 {[%clk
00:00:54]} {[%emt 00:00:12]} Rb8 {[%clk 00:00:49]} {[%emt 00:00:02]} 34. Qf5
{[%clk 00:00:50]} {[%emt 00:00:09]} Kg8 {[%clk 00:00:32]} {[%emt 00:00:22]} 35.
a5 {[%clk 00:00:44]} {[%emt 00:00:11]} Rd8 {[%clk 00:00:30]} {[%emt 00:00:07]}
36. a6 {[%clk 00:00:35]} {[%emt 00:00:15]} d3 {[%clk 00:00:33]} 37. Rd1 {[%clk
00:00:35]} {[%emt 00:00:05]} d2 {[%clk 00:00:35]} {[%emt 00:00:03]} 38. Qe4
{[%clk 00:00:34]} {[%emt 00:00:07]} Qd6 {[%clk 00:00:30]} {[%emt 00:00:09]} 39.
Qe2 {[%clk 00:00:32]} {[%emt 00:00:07]} Qd4 {[%clk 00:00:24]} {[%emt 00:00:10]}
40. Kh2 {[%clk 00:00:34]} {[%emt 00:00:05]} Kf7 {[%clk 00:00:18]} {[%emt
00:00:11]} 41. Kh3 {[%clk 00:00:35]} {[%emt 00:00:03]} Rd7 {[%clk 00:00:18]}
{[%emt 00:00:04]} 42. Qg4 {[%clk 00:00:34]} {[%emt 00:00:07]} Qd6 {[%clk
00:00:16]} {[%emt 00:00:08]} 43. Qh5+ {[%clk 00:00:37]} {[%emt 00:00:01]} Kg8
{[%clk 00:00:19]} {[%emt 00:00:02]} 44. Qe8+ {[%clk 00:00:41]} {[%emt
00:00:02]} Kh7 {[%clk 00:00:23]} 45. Qe4+ {[%clk 00:00:45]} {[%emt 00:00:01]}
g6 {[%clk 00:00:25]} {[%emt 00:00:02]} 46. Qe2 {[%clk 00:00:44]} {[%emt
00:00:06]} f5 {[%clk 00:00:28]} {[%emt 00:00:03]} 47. f3 {[%clk 00:00:45]}
{[%emt 00:00:04]} Qd4 {[%clk 00:00:16]} {[%emt 00:00:16]} 48. f4 {[%clk
00:00:47]} {[%emt 00:00:04]} Kg7 {[%clk 00:00:11]} {[%emt 00:00:10]} 49. Kh2
{[%clk 00:00:51]} {[%emt 00:00:01]} Qd3 {[%clk 00:00:08]} {[%emt 00:00:08]} 50.
Qe6 {[%clk 00:00:54]} {[%emt 00:00:02]} Kh7 {[%clk 00:00:08]} {[%emt 00:00:04]}
51. Kh3 {[%clk 00:00:53]} {[%emt 00:00:07]} Qd6 {[%clk 00:00:09]} {[%emt
00:00:03]} 52. Qe2 {[%clk 00:00:53]} {[%emt 00:00:05]} g5 {[%clk 00:00:11]}
{[%emt 00:00:03]} 53. fxg5 {[%clk 00:00:26]} {[%emt 00:00:33]} hxg5 {[%clk
00:00:14]} {[%emt 00:00:01]} 54. Qh5+ {[%clk 00:00:29]} {[%emt 00:00:02]} Qh6
{[%clk 00:00:16]} {[%emt 00:00:03]} 55. g4 {[%clk 00:00:24]} {[%emt 00:00:11]}
fxg4+ {[%clk 00:00:18]} {[%emt 00:00:03]} 0-1

[Event "The Schackveckan 2023: Göteborg open"]
[Site "Göteborgs schackcentrum, Vegagatan 20, Gothenburg, Sweden"]
[Date "2023.08.11"]
[Round "2.3"]
[White "Ustianovich, Nazar"]
[Black "Johansson, Roy"]
[Result "1-0"]
[TimeControl "15 minutes + 5 seconds per move from move one (Round 1 - 4) / 90 minutes + 30 seconds per move from move one (Round 5 - 8)"]
[WhiteTitle "FM"]
[WhiteFideId "14109778"]
[BlackFideId "1745972"]
[WhiteElo "2314"]
[BlackElo "1890"]

1. Nf3 {[%clk 00:15:09]} f5 {[%clk 00:15:04]} {[%emt 00:00:06]} 2. c4 {[%clk
00:14:58]} {[%emt 00:00:17]} Nf6 {[%clk 00:15:06]} {[%emt 00:00:04]} 3. g3
{[%clk 00:14:46]} {[%emt 00:00:16]} g6 {[%clk 00:15:08]} {[%emt 00:00:03]} 4.
Bg2 {[%clk 00:14:49]} {[%emt 00:00:02]} Bg7 {[%clk 00:15:11]} {[%emt 00:00:02]}
5. O-O {[%clk 00:14:49]} {[%emt 00:00:04]} O-O {[%clk 00:15:14]} {[%emt
00:00:03]} 6. d4 {[%clk 00:14:42]} {[%emt 00:00:13]} d6 {[%clk 00:15:13]}
{[%emt 00:00:05]} 7. Nc3 {[%clk 00:14:46]} Qe8 {[%clk 00:15:06]} {[%emt
00:00:12]} 8. Re1 {[%clk 00:14:49]} {[%emt 00:00:02]} e5 {[%clk 00:15:03]}
{[%emt 00:00:07]} 9. dxe5 {[%clk 00:14:35]} {[%emt 00:00:20]} dxe5 {[%clk
00:15:03]} {[%emt 00:00:05]} 10. e4 {[%clk 00:14:39]} f4 {[%clk 00:14:58]}
{[%emt 00:00:11]} 11. gxf4 {[%clk 00:14:31]} {[%emt 00:00:13]} Nh5 {[%clk
00:14:52]} {[%emt 00:00:10]} 12. Nd5 {[%clk 00:13:47]} {[%emt 00:00:50]} Na6
{[%clk 00:14:46]} {[%emt 00:00:11]} 13. fxe5 {[%clk 00:13:28]} {[%emt
00:00:23]} Bg4 {[%clk 00:14:06]} {[%emt 00:00:45]} 14. Nf6+ {[%clk 00:12:03]}
{[%emt 00:01:31]} Nxf6 {[%clk 00:13:35]} {[%emt 00:00:35]} 15. exf6 {[%clk
00:12:07]} {[%emt 00:00:02]} Bxf6 {[%clk 00:13:13]} {[%emt 00:00:27]} 16. e5
{[%clk 00:10:25]} {[%emt 00:01:47]} Bg7 {[%clk 00:12:54]} {[%emt 00:00:23]} 17.
Qd5+ {[%clk 00:09:18]} {[%emt 00:01:12]} Kh8 {[%clk 00:12:46]} {[%emt
00:00:13]} 18. Qxb7 {[%clk 00:09:17]} {[%emt 00:00:07]} Nc5 {[%clk 00:12:26]}
{[%emt 00:00:25]} 19. Qd5 {[%clk 00:07:10]} {[%emt 00:02:11]} Ne6 {[%clk
00:10:49]} {[%emt 00:01:42]} 20. Qe4 {[%clk 00:07:09]} {[%emt 00:00:07]} Bf5
{[%clk 00:10:31]} {[%emt 00:00:23]} 21. Qh4 {[%clk 00:07:12]} {[%emt 00:00:02]}
Rd8 {[%clk 00:10:10]} {[%emt 00:00:26]} 22. Be3 {[%clk 00:06:45]} {[%emt
00:00:32]} a6 {[%clk 00:10:02]} {[%emt 00:00:13]} 23. b3 {[%clk 00:06:38]}
{[%emt 00:00:12]} Kg8 {[%clk 00:09:46]} {[%emt 00:00:20]} 24. Rad1 {[%clk
00:06:40]} {[%emt 00:00:04]} Rxd1 {[%clk 00:09:32]} {[%emt 00:00:19]} 25. Rxd1
{[%clk 00:06:44]} {[%emt 00:00:01]} Rf7 {[%clk 00:08:43]} {[%emt 00:00:53]} 26.
Ng5 {[%clk 00:04:57]} {[%emt 00:01:53]} Bxe5 {[%clk 00:07:27]} {[%emt
00:01:20]} 27. Nxe6 {[%clk 00:04:30]} {[%emt 00:00:33]} Qxe6 {[%clk 00:07:02]}
{[%emt 00:00:30]} 28. Rd8+ {[%clk 00:04:31]} {[%emt 00:00:03]} Rf8 {[%clk
00:06:11]} {[%emt 00:00:56]} 29. Bd5 {[%clk 00:04:34]} {[%emt 00:00:03]} Qe8
{[%clk 00:06:15]} {[%emt 00:00:08]} 1-0

[Event "The Schackveckan 2023: Göteborg open"]
[Site "Göteborgs schackcentrum, Vegagatan 20, Gothenburg, Sweden"]
[Date "2023.08.11"]
[Round "2.4"]
[White "Bjorklund, Thomas"]
[Black "Havner, Arvid"]
[Result "1-0"]
[TimeControl "15 minutes + 5 seconds per move from move one (Round 1 - 4) / 90 minutes + 30 seconds per move from move one (Round 5 - 8)"]
[WhiteFideId "1724576"]
[BlackFideId "1769308"]
[WhiteElo "2139"]
[BlackElo "1825"]

1. e4 {[%clk 00:15:07]} {[%emt 00:00:02]} c5 {[%clk 00:15:09]} {[%emt
00:00:02]} 2. Nf3 {[%clk 00:15:10]} {[%emt 00:00:01]} d6 {[%clk 00:15:14]} 3.
d4 {[%clk 00:15:15]} {[%emt 00:00:01]} cxd4 {[%clk 00:15:18]} {[%emt 00:00:01]}
4. Nxd4 {[%clk 00:15:19]} {[%emt 00:00:02]} Nf6 {[%clk 00:15:22]} 5. Nc3 {[%clk
00:15:23]} {[%emt 00:00:02]} a6 {[%clk 00:15:26]} 6. Bg5 {[%clk 00:15:25]}
{[%emt 00:00:02]} Nbd7 {[%clk 00:15:29]} {[%emt 00:00:02]} 7. Bc4 {[%clk
00:15:13]} {[%emt 00:00:18]} e6 {[%clk 00:15:23]} {[%emt 00:00:11]} 8. O-O
{[%clk 00:15:09]} {[%emt 00:00:08]} Be7 {[%clk 00:15:23]} {[%emt 00:00:05]} 9.
Bxe6 {[%clk 00:15:00]} {[%emt 00:00:14]} fxe6 {[%clk 00:15:06]} {[%emt
00:00:22]} 10. Nxe6 {[%clk 00:15:03]} {[%emt 00:00:03]} Qa5 {[%clk 00:15:10]}
{[%emt 00:00:01]} 11. Nxg7+ {[%clk 00:14:52]} {[%emt 00:00:15]} Kd8 {[%clk
00:15:07]} {[%emt 00:00:08]} 12. Ne6+ {[%clk 00:14:29]} {[%emt 00:00:29]} Ke8
{[%clk 00:15:11]} {[%emt 00:00:01]} 13. Nd5 {[%clk 00:14:11]} {[%emt 00:00:22]}
h5 {[%clk 00:14:12]} {[%emt 00:01:04]} 14. Nec7+ {[%clk 00:13:44]} {[%emt
00:00:34]} Kd8 {[%clk 00:14:07]} {[%emt 00:00:10]} 15. Nxa8 {[%clk 00:13:34]}
{[%emt 00:00:15]} Nxd5 {[%emt 00:00:07]} 16. Bd2 {[%clk 00:13:19]} {[%emt
00:00:18]} Qc5 {[%clk 00:13:35]} {[%emt 00:00:37]} 17. exd5 {[%clk 00:13:17]}
{[%emt 00:00:07]} Qxd5 {[%clk 00:13:07]} {[%emt 00:00:32]} 18. Bc3 {[%clk
00:13:18]} {[%emt 00:00:05]} Qxd1 {[%clk 00:12:55]} {[%emt 00:00:17]} 19. Raxd1
{[%clk 00:13:21]} {[%emt 00:00:01]} Rg8 {[%clk 00:12:59]} 20. Ba5+ {[%clk
00:13:20]} {[%emt 00:00:07]} 1-0